bitfinex-derivatives/quotes_SOLF0:USTF0_20250319
["timestamp","ask_amount","ask_price","bid_price","bid_amount"]
[1742343557873,0.05397348,125.62,125.61,21.093874]
[1742343558074,32.70655991,125.68,125.61,41.651374]
[1742343558386,28.57855991,125.68,125.66,21.090774]
[1742343559289,28.60062881,125.68,125.66,21.090774]
[1742343559693,38.35344198,125.67,125.65,8.01399931]
[1742343560090,38.35344198,125.67,125.65,0.05419931]
[1742343560389,38.35344198,125.67,125.65,13.18557331]
[1742343561280,38.35344198,125.67,125.66,7.9594]
[1742343563086,38.35344198,125.67,125.66,21.090774]
[1742343563291,9.79344198,125.67,125.66,21.090774]
[1742343567192,9.79344198,125.67,125.66,13.131374]
[1742343569595,9.79344198,125.67,125.65,13.18557331]
[1742343572296,17.75224198,125.67,125.65,13.18557331]
[1742343574201,7.9594,125.66,125.65,13.18557331]
[1742343574402,7.9594,125.66,125.65,0.05419931]
[1742343574704,7.9606,125.64,125.63,6.565687]
[1742343575298,7.9606,125.64,125.62,13.131374]
[1742343575999,8.0183059,125.64,125.62,13.18977666]
[1742343576699,7.9613,125.63,125.62,0.05840266]
[1742343578904,7.9631,125.61,125.59,13.131374]
[1742343580007,8.02208011,125.61,125.59,13.18696627]
[1742343580599,0.05898011,125.61,125.59,13.18696627]
[1742343581001,0.05898011,125.61,125.6,13.131374]
[1742343582807,0.05898011,125.61,125.59,13.18696627]
[1742343584395,0.05898011,125.61,125.6,13.131374]
[1742343585702,0.05898011,125.61,125.6,21.094574]
[1742343587611,0.05898011,125.61,125.6,13.131374]
[1742343591302,0.05898011,125.61,125.59,0.05559227]
[1742343591303,8.02168011,125.61,125.59,13.18696627]
[1742343592907,0.05898011,125.61,125.59,13.18696627]
[1742343596809,0.05898011,125.61,125.59,21.15046627]
[1742343597724,0.05898011,125.61,125.6,13.131374]
[1742343599218,0.05898011,125.61,125.6,21.094574]
[1742343600416,0.05898011,125.61,125.6,13.131374]
[1742343600914,0.05898011,125.61,125.6,21.094574]
[1742343601116,15.81474198,125.67,125.65,13.131374]
[1742343601419,28.42,125.66,125.65,13.131374]
[1742343601920,28.42,125.66,125.64,13.131374]
[1742343602116,28.42,125.66,125.64,13.1872845]
[1742343602315,28.42,125.66,125.64,21.1474845]
[1742343602814,28.42,125.66,125.65,21.091374]
[1742343603226,28.42,125.66,125.65,7.96]
[1742343603516,9.85408312,125.67,125.66,7.9594]
[1742343603724,9.85408312,125.67,125.65,13.131374]
[1742343603916,9.85408312,125.67,125.64,13.1872845]
[1742343604309,9.85408312,125.67,125.64,21.1475845]
[1742343604716,9.85408312,125.67,125.64,13.1872845]
[1742343604924,17.81298312,125.67,125.64,13.1872845]
[1742343605110,13.131374,125.65,125.64,0.0559105]
[1742343605417,13.131374,125.65,125.59,21.094974]
[1742343605620,41.551374,125.64,125.59,21.094974]
[1742343606517,0.05450387,125.63,125.6,0.0524098]
[1742343606710,28.42,125.62,125.6,0.0524098]
[1742343606931,36.3823,125.62,125.6,0.0524098]
[1742343607113,28.42,125.62,125.6,0.0524098]
[1742343609727,41.551374,125.62,125.6,0.0524098]
[1742343610825,7.9625,125.61,125.6,0.0524098]
[1742343615423,21.093874,125.61,125.6,0.0524098]
[1742343618533,7.9625,125.61,125.6,0.0524098]
[1742343626056,28.42,125.62,125.6,13.1837838]
[1742343626259,28.42,125.62,125.61,13.131374]
[1742343626458,28.44,125.62,125.61,13.131374]
[1742343628047,0.05450387,125.63,125.61,13.131374]
[1742343628251,0.05450387,125.63,125.62,13.131374]
[1742343629056,0.05450387,125.63,125.62,21.093274]
[1742343629254,28.44,125.66,125.62,13.131374]
[1742343629449,9.79344198,125.67,125.65,13.131374]
[1742343629649,9.79344198,125.67,125.66,13.131374]
[1742343630452,9.79344198,125.67,125.66,21.090774]
[1742343637562,28.63466743,125.68,125.66,41.551374]
[1742343637862,28.63466743,125.68,125.67,21.090074]
[1742343638659,9.53665907,125.69,125.68,7.9581]
[1742343638960,9.53665907,125.69,125.68,21.089474]
[1742343641764,9.53665907,125.69,125.68,13.131374]
[1742343642469,9.53665907,125.69,125.68,21.089474]
[1742343644265,9.53665907,125.69,125.68,49.509474]
[1742343644960,9.53665907,125.69,125.68,41.551374]
[1742343646068,9.53665907,125.69,125.68,49.509474]
[1742343650167,9.53665907,125.69,125.68,41.551374]
[1742343650475,9.53665907,125.69,125.68,13.131374]
[1742343650871,9.53665907,125.69,125.67,13.131374]
[1742343651266,9.53665907,125.69,125.66,13.131374]
[1742343651870,17.49445907,125.69,125.66,13.131374]
[1742343653075,17.49445907,125.69,125.66,21.090674]
[1742343654378,17.49445907,125.69,125.67,13.131374]
[1742343655776,9.53665907,125.69,125.67,21.090074]
[1742343656478,9.53665907,125.69,125.67,13.131374]
[1742343658379,17.49425907,125.69,125.67,13.131374]
[1742343661180,9.53665907,125.69,125.68,13.131374]
[1742343662282,9.53665907,125.69,125.68,21.089474]
[1742343662782,9.53665907,125.69,125.68,13.131374]
[1742343663384,9.53665907,125.69,125.68,41.531374]
[1742343663886,9.53665907,125.69,125.68,49.489474]
[1742343664982,9.53665907,125.69,125.68,41.531374]
[1742343665974,9.53665907,125.69,125.68,49.489474]
[1742343666285,9.53665907,125.69,125.68,41.531374]
[1742343671293,9.53665907,125.69,125.68,13.131374]
[1742343671494,17.49415907,125.69,125.68,13.131374]
[1742343671692,17.49415907,125.69,125.67,13.131374]
[1742343675792,9.53665907,125.69,125.67,13.131374]
[1742343676004,9.53665907,125.69,125.68,13.131374]
[1742343676598,9.53665907,125.69,125.65,291.11032255]
[1742343676903,28.4,125.68,125.65,262.71032255]
[1742343677087,28.4,125.68,125.65,0.05032255]
[1742343678199,7.9591,125.67,125.65,0.05032255]
[1742343678692,7.98008987,125.67,125.65,0.05032255]
[1742343680604,7.98008987,125.67,125.65,13.18169655]
[1742343681499,0.02098987,125.67,125.66,13.131374]
[1742343682203,0.02098987,125.67,125.66,21.090774]
[1742343682401,9.53665907,125.69,125.66,41.531374]
[1742343682598,9.53665907,125.69,125.68,13.131374]
[1742343683107,9.53665907,125.69,125.68,21.089474]
[1742343683503,9.53665907,125.69,125.68,13.131374]
[1742343687512,9.53665907,125.69,125.68,21.089474]
[1742343689012,9.53665907,125.69,125.68,13.131374]
[1742343692605,9.53665907,125.69,125.66,290.94]
[1742343692806,9.53665907,125.69,125.68,13.131374]
[1742343693411,17.49415907,125.69,125.68,13.131374]
[1742343694205,7.9587,125.68,125.66,275.671374]
[1742343695416,7.9587,125.67,125.66,262.54]
[1742343695610,51.06803307,125.69,125.65,13.18169655]
[1742343695797,7.9592,125.67,125.65,13.18169655]
[1742343695998,37.93665907,125.69,125.65,13.18169655]
[1742343696602,7.9588,125.67,125.65,13.18169655]
[1742343699311,7.9588,125.67,125.65,0.05032255]
[1742343699512,7.9588,125.67,125.65,13.18169655]
[1742343702217,51.06803307,125.69,125.65,0.05032255]
[1742343702516,2.1461,125.68,125.65,0.05032255]
[1742343702710,28.4,125.67,125.65,0.05032255]
[1742343702908,7.9594,125.66,125.65,0.05032255]
[1742343703111,7.9594,125.66,125.61,262.54]
[1742343703112,13.131374,125.66,125.62,13.131374]
[1742343703310,28.4,125.65,125.61,275.671374]
[1742343703521,41.531374,125.65,125.61,275.671374]
[1742343704313,0.05032255,125.64,125.62,0.05409542]
[1742343704519,28.4,125.63,125.62,0.05409542]
[1742343705519,36.3613,125.63,125.62,0.05409542]
[1742343709419,49.492674,125.63,125.62,0.05409542]
[1742343709620,7.9633,125.6,125.58,13.131374]
[1742343710624,7.9633,125.6,125.58,13.18278326]
[1742343710921,0.06142529,125.6,125.58,13.18278326]
[1742343711625,28.42,125.59,125.58,0.05140926]
[1742343711829,36.3838,125.59,125.58,0.05140926]
[1742343714325,28.42,125.59,125.58,0.05140926]
[1742343714518,28.42,125.59,125.58,13.18278326]
[1742343716023,28.42,125.59,125.58,21.14718326]
[1742343716418,2.22142529,125.6,125.59,7.9638]
[1742343716619,0.06142529,125.6,125.59,21.095174]
[1742343717218,0.06142529,125.6,125.58,21.14708326]
[1742343717418,28.48142529,125.6,125.58,13.18278326]
[1742343717719,28.48142529,125.6,125.59,13.131374]
[1742343717925,28.48142529,125.6,125.59,21.095174]
[1742343719441,0.06142529,125.6,125.59,21.095174]
[1742343722226,28.42,125.63,125.59,13.131374]
[1742343722424,28.42,125.63,125.62,13.131374]
[1742343723033,28.42,125.63,125.62,21.093274]
[1742343723932,0.04299268,125.64,125.62,21.093274]
[1742343724231,28.46299268,125.64,125.62,21.093274]
[1742343725327,0.04299268,125.64,125.63,7.9613]
[1742343725535,0.04299268,125.64,125.63,21.092674]
[1742343729533,28.42,125.68,125.63,13.131374]
[1742343729841,40.03275907,125.69,125.67,13.131374]
[1742343730037,40.03275907,125.69,125.68,13.131374]
[1742343730232,9.53665907,125.69,125.68,13.131374]
[1742343731942,9.53665907,125.69,125.67,13.18203128]
[1742343732834,9.53665907,125.69,125.68,13.131374]
[1742343734030,9.53665907,125.69,125.68,21.089474]
[1742343737832,23.10413751,125.7,125.69,7.9575]
[1742343738032,23.10413751,125.7,125.69,21.088874]
[1742343738741,9.58051488,125.71,125.7,7.9568]
[1742343738932,9.58051488,125.71,125.7,21.088174]
[1742343740051,29.15442105,125.72,125.71,7.9562]
[1742343740246,9.70781869,125.73,125.71,41.531374]
[1742343740450,9.70781869,125.73,125.72,21.086974]
[1742343741439,12.51458632,125.75,125.72,41.531374]
[1742343741641,1.552199,125.76,125.74,13.131374]
[1742343741846,1.552199,125.76,125.75,21.085074]
[1742343744047,1.552199,125.76,125.75,13.131374]
[1742343744745,1.552199,125.76,125.74,0.06022258]
[1742343745334,29.952199,125.76,125.74,0.06022258]
[1742343745537,37.905599,125.76,125.74,0.06022258]
[1742343745837,29.952199,125.76,125.74,0.06022258]
[1742343746043,7.9537,125.75,125.74,0.06022258]
[1742343746949,13.131374,125.75,125.71,13.131374]
[1742343747251,28.38,125.74,125.7,13.131374]
[1742343747431,28.38,125.74,125.71,13.131374]
[1742343747838,41.511374,125.74,125.69,13.131374]
[1742343748341,7.9565,125.71,125.7,0.05541745]
[1742343748546,36.3765,125.71,125.7,0.05541745]
[1742343749049,7.9581,125.68,125.66,13.131374]
[1742343749248,7.9581,125.68,125.64,262.48]
[1742343749249,7.9581,125.68,125.65,13.131374]
[1742343749548,41.671374,125.67,125.63,13.131374]
[1742343749742,28.56,125.66,125.63,13.131374]
[1742343750131,28.61643696,125.66,125.63,0.05699213]
[1742343750338,13.131374,125.65,125.6,275.611374]
[1742343750540,28.62,125.64,125.6,275.611374]
[1742343750833,28.62,125.64,125.61,13.131374]
[1742343751149,28.62,125.64,125.6,262.48]
[1742343751748,8.01442456,125.63,125.61,0.05055013]
[1742343752048,0.05312456,125.63,125.58,20.534763]
[1742343753143,0.05312456,125.63,125.59,0.05388427]
[1742343754144,2.21232456,125.63,125.59,0.05388427]
[1742343756251,10.17372456,125.63,125.59,0.05388427]
[1742343756442,22.74708756,125.63,125.55,262.48]
[1742343756641,22.693963,125.63,125.55,262.48]
[1742343756842,22.693963,125.63,125.56,20.534763]
[1742343757153,2.1653,125.62,125.56,20.534763]
[1742343757359,28.92,125.61,125.56,20.534763]
[1742343757744,0.06112437,125.6,125.57,0.0510994]
[1742343758055,0.06112437,125.6,125.57,8.0159994]
[1742343758353,0.06112437,125.6,125.57,0.0510994]
[1742343758652,0.06112437,125.6,125.57,8.0160994]
[1742343759151,0.06112437,125.6,125.58,28.499063]
[1742343759351,0.06112437,125.6,125.58,20.534763]
[1742343759655,0.06112437,125.6,125.57,0.0510994]
[1742343760738,0.06112437,125.6,125.55,262.48]
[1742343760945,0.06112437,125.6,125.54,20.534763]
[1742343761242,0.06112437,125.6,125.5,262.64]
[1742343761447,20.534763,125.59,125.51,20.534763]
[1742343761752,20.534763,125.57,125.5,262.64]
[1742343761941,31.18587778,125.56,125.54,0.05364554]
[1742343762141,33.21437778,125.56,125.5,262.64]
[1742343762643,33.21437778,125.56,125.49,20.534763]
[1742343763253,33.21437778,125.56,125.5,7.9691]
[1742343763551,33.21437778,125.56,125.51,0.05316824]
[1742343763944,33.17437778,125.56,125.51,20.58793124]
[1742343764139,0.05627778,125.56,125.53,20.534763]
[1742343764352,0.05627778,125.56,125.55,28.501063]
[1742343765352,28.96,125.62,125.58,7.9641]
[1742343765652,28.96,125.62,125.57,20.534763]
[1742343766052,28.96,125.62,125.59,7.9638]
[1742343766553,29.01494288,125.62,125.59,8.01669513]
[1742343767345,57.51170588,125.62,125.59,0.05289513]
[1742343767655,20.534763,125.6,125.53,20.534763]
[1742343767950,29.14,125.59,125.56,7.9653]
[1742343768348,4.0473,125.61,125.59,1970.86]
[1742343768543,29.14,125.6,125.59,1970.86]
[1742343768748,29.14,125.6,125.59,1970.91444907]
[1742343773544,33.20068502,125.61,125.59,1970.91444907]
[1742343773849,0.05338502,125.61,125.59,1970.91444907]
[1742343774043,0.05338502,125.61,125.6,7.9632]
[1742343775156,0.05338502,125.61,125.59,1970.91444907]
[1742343775157,0.05338502,125.61,125.59,1978.87794907]
[1742343775463,0.05338502,125.61,125.59,1970.91444907]
[1742343776464,29.24,125.6,125.59,1970.91444907]
[1742343776657,29.24,125.6,125.59,1967.61704907]
[1742343776860,37.2032,125.6,125.59,1967.61704907]
[1742343777159,29.24,125.6,125.59,1967.61704907]
[1742343778167,37.2032,125.6,125.59,1967.61704907]
[1742343780463,29.24,125.6,125.59,1967.61704907]
[1742343781168,37.2032,125.6,125.59,1967.61704907]
[1742343783368,47.4705815,125.6,125.59,1967.61704907]
[1742343783560,49.4848815,125.6,125.59,1967.61704907]
[1742343784871,39.2175,125.6,125.59,1967.61704907]
[1742343785465,39.2175,125.6,125.59,1965.61704907]
[1742343786063,49.4848815,125.6,125.59,1965.61704907]
[1742343786564,59.752263,125.6,125.59,1965.61704907]
[1742343786765,59.752263,125.6,125.59,1955.78924515]
[1742343789074,59.752263,125.6,125.59,1943.36564515]
[1742343789282,59.752263,125.6,125.59,1902.16754515]
[1742343798378,59.752263,125.6,125.59,1619.05281259]
[1742343798572,67.712263,125.6,125.59,1619.05281259]
[1742343798776,59.752263,125.6,125.59,1619.05281259]
[1742343799880,37.2032,125.6,125.59,1619.05281259]
[1742343804983,47.4705815,125.6,125.59,1619.05281259]
[1742343807878,47.4705815,125.6,125.59,1606.35121259]
[1742343808083,47.4705815,125.6,125.59,1300.95368003]
[1742343808282,55.4305815,125.6,125.59,1271.75178003]
[1742343808680,47.4705815,125.6,125.59,1271.75178003]
[1742343809993,29.16069033,125.62,125.59,1279.71178003]
[1742343810182,220.76730004,125.67,125.61,10.2673815]
[1742343810384,220.76730004,125.67,125.59,1271.69733096]
[1742343810686,30.1,125.64,125.59,1271.69733096]
[1742343810892,30.1,125.64,125.59,1292.23209396]
[1742343811094,30.1,125.64,125.61,13.14180994]
[1742343811296,0.05360024,125.63,125.61,13.14180994]
[1742343811500,88.82435638,125.63,125.61,13.14180994]
[1742343812398,88.82435638,125.63,125.6,0.05698739]
[1742343814390,0.05360024,125.63,125.6,0.05698739]
[1742343818206,7.9623,125.62,125.6,0.05698739]
[1742343818395,30.0,125.61,125.6,0.05698739]
[1742343823611,37.9625,125.61,125.6,0.05698739]
[1742343824406,7.9632,125.6,125.59,1269.75431835]
[1742343824701,30.0,125.61,125.59,1269.75431835]
[1742343825497,30.0,125.61,125.59,1269.81454316]
[1742343830307,37.9626,125.61,125.59,1269.81454316]
[1742343833512,30.0,125.61,125.59,1269.81454316]
[1742343835513,37.9627,125.61,125.59,1269.81454316]
[1742343837413,7.9632,125.6,125.59,1269.81454316]
[1742343837614,21.11067732,125.6,125.59,1267.81454316]
[1742343837802,21.11067732,125.6,125.59,1216.08545267]
[1742343840312,13.14747732,125.6,125.59,1216.08545267]
[1742343840516,37.9628,125.61,125.59,1216.08545267]
[1742343840709,29.64,125.6,125.59,1216.08545267]
[1742343842116,29.64,125.6,125.59,1229.23292999]
[1742343842318,0.05360024,125.63,125.59,1229.23292999]
[1742343842519,37.6224,125.62,125.6,13.14747732]
[1742343843509,7.9624,125.62,125.6,13.14747732]
[1742343843706,29.62,125.61,125.6,13.14747732]
[1742343845607,29.6,125.61,125.6,13.14747732]
[1742343847518,29.6,125.61,125.59,1216.08545267]
[1742343848114,37.5629,125.61,125.59,1216.08545267]
[1742343848417,13.14747732,125.6,125.59,1214.08545267]
[1742343848921,21.11067732,125.6,125.59,1207.49585267]
[1742343849616,21.11067732,125.6,125.59,1197.61235267]
[1742343849817,21.11067732,125.6,125.59,1170.20475267]
[1742343850722,21.11067732,125.6,125.59,1144.70565267]
[1742343851815,21.11067732,125.6,125.59,911.83226542]
[1742343852013,29.07067732,125.6,125.59,864.69316542]
[1742343852211,29.07067732,125.6,125.59,836.46996542]
[1742343852707,29.07067732,125.6,125.59,822.03676542]
[1742343852916,29.07067732,125.6,125.59,769.40946542]
[1742343853224,29.07067732,125.6,125.59,710.65994322]
[1742343854620,29.07067732,125.6,125.59,524.31077817]
[1742343855126,388.07067732,125.6,125.59,524.31077817]
[1742343855328,380.11067732,125.6,125.59,524.31077817]
[1742343855822,372.14747732,125.6,125.59,524.31077817]
[1742343856015,359.0,125.6,125.59,524.31077817]
[1742343856825,309.11060409,125.62,125.59,524.31077817]
[1742343857025,29.56,125.6,125.59,524.31077817]
[1742343865739,37.5232,125.6,125.59,524.31077817]
[1742343874550,58.0705306,125.6,125.59,524.31077817]
[1742343875743,58.0705306,125.6,125.59,512.19507817]
[1742343876040,66.0305306,125.6,125.59,217.41274561]
[1742343876244,66.0305306,125.6,125.59,205.13794561]
[1742343876632,66.0305306,125.6,125.59,192.75214561]
[1742343877147,58.6459667,125.6,125.59,192.75214561]
[1742343878550,7.9652,125.57,125.52,4.3048]
[1742343878736,42.5027667,125.56,125.52,4.3048]
[1742343879233,42.5027667,125.56,125.52,17.4675667]
[1742343879837,0.05767301,125.55,125.53,0.05035149]
[1742343880054,0.05767301,125.55,125.53,13.21311819]
[1742343883548,13.1627667,125.6,125.54,13.1627667]
[1742343883738,29.26,125.59,125.56,13.1627667]
[1742343884849,29.31728444,125.59,125.56,13.22061981]
[1742343885242,29.31728444,125.59,125.56,0.05785311]
[1742343885443,29.31728444,125.59,125.56,13.22061981]
[1742343886147,29.31728444,125.59,125.57,13.1627667]
[1742343886549,26.02168444,125.59,125.58,13.1627667]
[1742343886951,0.05728444,125.59,125.58,13.1627667]
[1742343887155,29.41728444,125.59,125.58,13.1627667]
[1742343887453,19.53018444,125.59,125.58,13.1627667]
[1742343888156,262.76,125.62,125.58,13.1627667]
[1742343888359,29.34,125.61,125.58,13.1627667]
[1742343888561,262.76,125.62,125.58,13.1627667]
[1742343888758,29.39486314,125.61,125.58,13.21570362]
[1742343890848,0.05486314,125.61,125.58,13.21570362]
[1742343891050,29.3,125.6,125.58,13.21570362]
[1742343892455,0.05486314,125.61,125.58,13.21570362]
[1742343892655,29.26,125.6,125.59,13.1627667]
[1742343893054,0.05486314,125.61,125.59,13.1627667]
[1742343893254,0.05486314,125.61,125.6,13.1627667]
[1742343893460,19.3762,125.61,125.6,13.1627667]
[1742343893658,9.56021665,125.61,125.6,13.1627667]
[1742343894665,0.05594791,125.62,125.6,13.1627667]
[1742343894865,0.05594791,125.62,125.61,13.1627667]
[1742343895057,29.29594791,125.62,125.61,13.1627667]
[1742343900566,0.05594791,125.62,125.61,13.1627667]
[1742343900767,39.65039153,125.68,125.61,13.1627667]
[1742343900961,29.18,125.67,125.65,13.1627667]
[1742343901957,7.9594,125.66,125.65,0.0544199]
[1742343902667,29.16,125.66,125.65,0.0544199]
[1742343905571,37.1194,125.66,125.65,0.0544199]
[1742343907356,29.16,125.66,125.65,0.0544199]
[1742343910573,29.16,125.66,125.65,13.2171866]
[1742343911078,0.06115484,125.67,125.65,13.2171866]
[1742343911375,29.1,125.68,125.66,13.1627667]
[1742343911572,22.51861665,125.68,125.67,13.1627667]
[1742343912070,19.34811665,125.68,125.67,13.1627667]
[1742343912271,262.8,125.72,125.67,13.1627667]
[1742343912472,29.1,125.71,125.68,13.1627667]
[1742343912661,29.15632771,125.71,125.68,13.21685514]
[1742343913068,29.15632771,125.71,125.69,13.1627667]
[1742343913378,0.05632771,125.71,125.69,13.1627667]
[1742343913574,29.15632771,125.71,125.69,13.1627667]
[1742343914874,29.11632771,125.71,125.7,13.1627667]
[1742343915079,0.05632771,125.71,125.7,13.1627667]
[1742343917870,29.07632771,125.71,125.7,13.1627667]
[1742343919986,29.07632771,125.71,125.68,0.05408844]
[1742343920172,42.23909441,125.71,125.68,0.05408844]
[1742343920777,50.19579441,125.71,125.68,0.05408844]
[1742343920982,29.07632771,125.71,125.68,0.05408844]
[1742343922380,29.07632771,125.71,125.68,13.21685514]
[1742343922579,29.07632771,125.71,125.69,13.1627667]
[1742343929184,29.07632771,125.71,125.68,0.05408844]
[1742343929390,29.07632771,125.71,125.7,13.1627667]
[1742343929787,29.07632771,125.71,125.7,21.1195667]
[1742343930305,11.695899,125.76,125.7,21.1195667]
[1742343930481,1.552199,125.76,125.75,13.1627667]
[1742343930686,1.552199,125.76,125.74,13.1627667]
[1742343930881,1.552199,125.76,125.73,13.1627667]
[1742343931087,1.552199,125.76,125.74,13.1627667]
[1742343931287,1.552199,125.76,125.75,13.1627667]
[1742343931489,1.552199,125.76,125.75,21.1164667]
[1742343932283,1.552199,125.76,125.75,13.1627667]
[1742343932802,1.552199,125.76,125.75,21.1164667]
[1742343933788,6.23772665,125.78,125.75,21.1227667]
[1742343933989,4.24751811,125.79,125.77,13.1627667]
[1742343934194,4.24751811,125.79,125.78,13.1627667]
[1742343934999,4.24751811,125.79,125.77,13.1627667]
[1742343935298,4.24751811,125.79,125.78,13.1627667]
[1742343935492,4.24751811,125.79,125.78,21.1145667]
[1742343935988,4.24751811,125.79,125.78,13.1627667]
[1742343936381,1.58506476,125.81,125.78,21.1227667]
[1742343936587,1.58506476,125.81,125.8,13.1627667]
[1742343937202,6.10414385,125.82,125.8,21.1127667]
[1742343937495,6.10414385,125.82,125.81,13.1627667]
[1742343937699,6.10414385,125.82,125.81,21.1126667]
[1742343937891,1.49469736,125.83,125.81,13.1627667]
[1742343938085,1.49469736,125.83,125.82,13.1627667]
[1742343938281,1.48584283,125.84,125.83,7.9486]
[1742343938486,1.48584283,125.84,125.83,21.1113667]
[1742343938693,1.48584283,125.84,125.83,13.1627667]
[1742343940396,1.48584283,125.84,125.81,6.58138335]
[1742343940601,1.48584283,125.84,125.8,0.05009552]
[1742343940787,1.48584283,125.84,125.82,13.1627667]
[1742343940988,1.48584283,125.84,125.8,0.05009552]
[1742343941189,1.48584283,125.84,125.81,13.1627667]
[1742343941589,1.48584283,125.84,125.81,21.1125667]
[1742343941784,1.48584283,125.84,125.8,0.05009552]
[1742343941785,1.48584283,125.84,125.82,13.1627667]
[1742343941990,1.48584283,125.84,125.83,13.1627667]
[1742343943799,1.48584283,125.84,125.83,21.1113667]
[1742343944097,1.48584283,125.84,125.82,13.1627667]
[1742343944495,1.48584283,125.84,125.83,13.1627667]
[1742343944998,1.48584283,125.84,125.82,13.1627667]
[1742343945589,1.48584283,125.84,125.81,13.1627667]
[1742343945795,14.64860953,125.84,125.8,0.05009552]
[1742343945997,16.63630953,125.84,125.8,13.21286222]
[1742343946692,3.47354283,125.84,125.81,13.1627667]
[1742343947101,3.47354283,125.84,125.8,0.05009552]
[1742343947395,3.47354283,125.84,125.81,13.1627667]
[1742343947596,3.47354283,125.84,125.8,13.21286222]
[1742343948997,16.63630953,125.84,125.8,0.05009552]
[1742343949196,24.58480953,125.84,125.8,0.05009552]
[1742343950704,16.63630953,125.84,125.8,0.05009552]
[1742343951904,3.47354283,125.84,125.8,13.21286222]
[1742343952703,3.47354283,125.84,125.81,13.1627667]
[1742343952900,3.47354283,125.84,125.8,13.21286222]
[1742343953502,16.63630953,125.84,125.8,0.05009552]
[1742343953698,13.1627667,125.83,125.8,0.05009552]
[1742343953895,29.18,125.82,125.8,0.05009552]
[1742343956206,29.18,125.82,125.75,2.111]
[1742343956207,13.1627667,125.81,125.76,13.1627667]
[1742343956709,13.1627667,125.8,125.75,21.1159667]
[1742343956903,13.1627667,125.8,125.72,29.14]
[1742343956904,29.2,125.79,125.71,29.2]
[1742343957205,29.2,125.78,125.76,21.1153667]
[1742343957398,29.26,125.78,125.77,13.1627667]
[1742343957598,29.31009552,125.78,125.77,13.1627667]
[1742343958704,0.05009552,125.78,125.77,13.1627667]
[1742343958909,29.24,125.82,125.77,13.1627667]
[1742343959110,29.24,125.82,125.8,13.1627667]
[1742343960001,29.24,125.82,125.81,13.1627667]
[1742343960608,3.47354283,125.84,125.81,21.1124667]
[1742343960799,29.26,125.83,125.82,13.1627667]
[1742343961203,29.26,125.83,125.82,21.1119667]
[1742343961597,3.47354283,125.84,125.82,21.1119667]
[1742343961805,29.26,125.83,125.82,21.1119667]
[1742343962005,1.48584283,125.84,125.83,7.9486]
[1742343962197,30.74584283,125.84,125.83,21.1113667]
[1742343962597,30.74584283,125.84,125.83,13.1627667]
[1742343963500,30.74584283,125.84,125.82,13.1627667]
[1742343963707,30.74584283,125.84,125.81,13.1627667]
[1742343964505,30.74584283,125.84,125.8,13.2167347]
[1742343966499,2.0651,125.83,125.8,13.2167347]
[1742343967111,2.0651,125.83,125.8,0.053968]
[1742343967510,6.2357,125.83,125.8,0.053968]
[1742343967706,7.9497,125.82,125.8,0.053968]
[1742343967901,29.3,125.81,125.8,0.053968]
[1742343968298,37.2499,125.81,125.8,0.053968]
[1742343968503,37.2499,125.81,125.74,20.47502868]
[1742343968504,29.3,125.81,125.74,20.47502868]
[1742343969009,7.951,125.8,125.74,20.47502868]
[1742343969208,29.3,125.81,125.74,20.47502868]
[1742343969413,7.9524,125.77,125.72,20.47502868]
[1742343969616,29.3,125.76,125.72,20.47502868]
[1742343969913,29.353968,125.75,125.74,0.05884667]
[1742343970106,29.3,125.75,125.74,0.05884667]
[1742343970711,0.053968,125.76,125.74,0.05884667]
[1742343970911,0.053968,125.76,125.74,20.53387535]
[1742343973511,0.053968,125.76,125.74,28.48797535]
[1742343973710,0.053968,125.76,125.74,20.53387535]
[1742343974218,0.053968,125.76,125.75,7.9537]
[1742343974711,29.4,125.8,125.75,7.9537]
[1742343974906,29.4,125.8,125.76,20.47502868]
[1742343975615,29.4,125.8,125.76,28.42802868]
[1742343975917,29.4,125.8,125.77,0.05375816]
[1742343977911,29.4,125.8,125.77,8.00615816]
[1742343978722,29.4,125.8,125.77,0.05375816]
[1742343978917,49.87502868,125.8,125.72,20.47502868]
[1742343979418,7.9516,125.79,125.73,7.9546]
[1742343979621,49.87502868,125.8,125.72,20.47502868]
[1742343979828,2.0861,125.78,125.72,20.47502868]
[1742343980027,29.36,125.77,125.74,7.9542]
[1742343980226,0.05375816,125.76,125.74,8.01195742]
[1742343980816,0.05375816,125.76,125.74,0.05775742]
[1742343981914,0.05375816,125.76,125.74,8.01185742]
[1742343982132,0.05375816,125.76,125.74,0.05775742]